Cogmind - Beta 15 @@@ ROGUE MODE // 2025.08.01 @ 07:16:41 Player: Florist Result: Core destroyed Performance ------------- Evolutions (6) 3000 Regions Visited (12) 2400 Robots Destroyed (164) 820 Value Destroyed (3573) 3573 Prototype IDs (16) 320 Alien Tech Used (0) 0 Bonus (304) 304 TOTAL SCORE: 10417 Bonus ------- High Alert Combat Kills 24 Follower Combat Kills 618 Friendly Fire -338 Cogmind --------- Core Integrity 0/1150 Matter 300/300 Energy 100/100 System Corruption 23% Temperature Cool (0) Movement Core (50) Location -4/Factory Parts ------- > --- POWER (1) -------- (None) > --- PROPULSION (7) --- (None) > --- UTILITY (9) ------ (None) > --- WEAPON (2) ------- (None) > --- INVENTORY (5) ---- VTOL Module Advanced Transmission Jammer Cloaking Device Authchip [Propulsion] Authchip [Propulsion] Peak State ------------ > --- POWER ------------ (None) > --- PROPULSION ------- Enhanced Armored Heavy Treads Impulse Thruster Array > --- UTILITY ---------- Machine Analyzer Enhanced Optical Array Advanced Signal Interpreter Improved Launcher Guidance Computer Hacking Suite Hacking Suite > --- WEAPON ----------- Tesla Rifle > --- INVENTORY -------- Structural Scanner Cloaking Device Improved Powered Armor Authchip [Propulsion] Authchip [Propulsion] [Rating: 69] Favorites ----------- Power Ion Engine Engine Ion Engine Power Core Light Nuclear Core Propulsion Light Treads Treads Light Treads Leg Flexi-carbon Leg Wheel Wheel Flight Unit Cesium-ion Thruster Utility Cooling System Device Cooling System Storage Huge Storage Unit Processor Machine Analyzer Hackware Hacking Suite Protection Hardened Light Armor Plating Weapon Improved Assault Rifle Energy Gun Improved Medium Laser Ballistic Gun Improved Assault Rifle Ballistic Cannon Mini Assault Cannon Launcher Scatter Rocket Array Special Weapon Plasma Cutter Impact Weapon Heavy Mace Slashing Weapon Chainsword Build | -11 -10 -10 -9 -9 -8 -7 -6 -5 -5 -4 -4 -4 ------- Run | Yrd Mat Min Mat Sto Mat Fac Fac Fac Ext Fac Was Fac Slots Evolved 12 | . . . 2 . 2 2 2 2 . 2 . . Power . | . . . . . . . . . . . . . Propulsion 5 | . . . 1 . 1 1 . 1 . 1 . . Utility 7 | . . . 1 . 1 1 2 1 . 1 . . Weapon . | . . . . . . . . . . . . . Parts Attached 118 | 8 6 3 29 16 8 14 9 4 9 1 3 8 Power 11 | 1 . . 4 2 . 2 1 . 1 . . . Engine 6 | 1 . . 1 2 . 2 . . . . . . Core 5 | . . . 3 . . . 1 . 1 . . . Reactor . | . . . . . . . . . . . . . Propulsion 42 | 2 . 2 11 6 4 5 2 1 5 . 2 2 Treads 25 | 2 . 2 9 6 4 . . . . . 1 1 Leg 4 | . . . . . . . . . 4 . . . Wheel 1 | . . . 1 . . . . . . . . . Hover . | . . . . . . . . . . . . . Flight 12 | . . . 1 . . 5 2 1 1 . 1 1 Utility 36 | 2 2 1 5 3 1 6 6 3 2 . 1 4 Device 14 | 1 . 1 1 2 . 4 2 . . . 1 2 Storage 5 | 1 2 . 2 . . . . . . . . . Processor 7 | . . . . . 1 1 1 3 1 . . . Hackware 6 | . . . . . . 1 3 . 1 . . 1 Protection 4 | . . . 2 1 . . . . . . . 1 Artifact . | . . . . . . . . . . . . . Weapon 29 | 3 4 . 9 5 3 1 . . 1 1 . 2 Energy Gun 9 | 3 1 . 3 . 1 . . . . 1 . . Energy Cannon . | . . . . . . . . . . . . . Ballistic Gun 10 | . 3 . 4 1 . . . . . . . 2 Ballistic Cannon 3 | . . . 1 . 2 . . . . . . . Launcher 4 | . . . 1 2 . . . . 1 . . . Special Weapon 1 | . . . . 1 . . . . . . . . Impact Weapon 1 | . . . . 1 . . . . . . . . Slashing Weapon 1 | . . . . . . 1 . . . . . . Piercing Weapon . | . . . . . . . . . . . . . Special Melee Weapon . | . . . . . . . . . . . . . Unidentified Prototypes 11 | . . . 4 3 2 . . . . . 2 . Corrupted Parts 1 | . . . 1 . . . . . . . . . System Corruption 3 | . . . 3 . . . . . . . . . Parts Lost 51 | . 3 . 12 1 . . 2 . 19 . 1 13 Power 3 | . . . 1 . . . . . 2 . . . Propulsion 19 | . . . 5 . . . 1 . 11 . . 2 Utility 15 | . 1 . 1 . . . 1 . 3 . . 9 Weapon 14 | . 2 . 5 1 . . . . 3 . 1 2 Highest Loss Streak 12 | . 2 . 11 1 . . 1 . 12 . 1 12 To Critical Strikes 1 | . . . . . . . . . 1 . . . Average Backups 17 | 1 10 14 22 24 24 8 6 5 7 5 5 4 Power . | . 1 1 . 1 1 . . 1 . . . . Propulsion 4 | . 3 5 7 7 5 . . . . . . . Utility 6 | . 3 3 7 9 10 5 2 2 5 5 5 4 Weapon 4 | . 2 4 6 6 7 1 1 1 . . . . Tool/Special . | . . . . . . . . . . . . . Unused Backups 24 | . 1 . 2 4 2 10 . 1 . . . 4 Power 1 | . . . . 1 . . . . . . . . Propulsion 2 | . . . 1 . 1 . . . . . . . Utility 12 | . . . . 2 1 4 . 1 . . . 4 Weapon 9 | . 1 . 1 1 . 6 . . . . . . Tool/Special . | . . . . . . . . . . . . . Average Slot Usage (%) 93 | . 97 99 94 99 97 88 92 92 90 34 39 35 Engine 6 | . 14 14 2 9 9 6 1 . . . . . Core 2 | . . . 8 1 . . 4 5 4 . . . Treads 24 | . 28 28 31 33 36 1 . . . . . . Flight 5 | . . . . . . 32 33 34 20 . 4 3 Device 11 | . 11 13 9 11 9 14 19 16 11 . 1 6 Storage 10 | . 14 14 11 11 9 7 6 5 4 . . . Processor 4 | . . . . . 7 7 13 16 21 21 20 9 Hackware 1 | . . . . . . 6 6 5 5 10 10 10 Protection 5 | . . . 8 10 9 . . . . . . 3 Energy Gun 6 | . 19 . 15 . . . . . . 3 2 . Ballistic Gun 9 | . 8 28 5 21 4 . . . . . . . Ballistic Cannon 1 | . . . . . 13 1 . . . . . . Peak Build Rating 69 | 7 8 8 25 25 36 36 45 57 67 33 69 57 Average Rating 24 | 5 7 7 20 22 32 31 42 54 60 32 48 39 On Entrance 26 | . 7 7 8 23 22 36 33 44 57 27 33 49 Naked Turns 1 | . . . . . . . . . . . . 1 Heaviest Build 105 | 13 88 30 100 103 105 105 22 19 26 5 5 15 Greatest Support 82 | 40 40 40 69 66 82 82 25 31 70 3 16 30 Greatest Overweight (x) 29 | 1 2 . 29 1 1 1 . . 1 1 1 . Average Overweight (x) . | . . . 1 1 1 . . . . . . . Largest Inventory Capacity 25 | 8 25 15 25 25 25 25 8 8 8 5 5 5 Average Capacity 19 | 7 16 15 24 25 25 9 8 8 7 5 5 5 Most Carried 25 | 3 15 15 25 25 25 25 7 8 8 5 5 5 Average Carried 17 | 1 10 14 22 24 24 8 5 5 7 5 5 4 Final Capacity 25 | 8 15 15 25 25 25 8 8 8 5 5 5 5 Final Carried 25 | 3 15 15 25 25 25 8 6 8 5 5 5 5 Class Distribution -------------------- 71% | Mutant 7% | Scout 4% | Commander-Mutant 4% | Scavenger-Mutant 3% | Sprinter 3% | Assassin Dominant Class ---------------- Mutant | -10/Materials Mutant | -10/Mines Mutant | -9/Materials Mutant | -9/Storage Mutant | -8/Materials Sprinter | -7/Factory Scout | -6/Factory Scout | -5/Factory Assassin | -5/Extension Hacker-Mutant | -4/Factory Hacker-Mutant | -4/Waste Hacker-Scout | -4/Factory Resources | -11 -10 -10 -9 -9 -8 -7 -6 -5 -5 -4 -4 -4 ----------- Run | Yrd Mat Min Mat Sto Mat Fac Fac Fac Ext Fac Was Fac Matter Collected 3319 | 259 185 35 781 683 353 264 25 170 498 . . 66 Remotely . | . . . . . . . . . . . . . Salvage Created 5835 | 280 1013 24 1705 1054 498 351 25 281 583 . . 21 Parts 329 | 19 60 4 89 52 25 21 3 18 36 . . 2 Haulers Intercepted 17 | . 2 . 6 6 2 1 . . . . . . Recyclers Shooed 2 | . 1 . 1 . . . . . . . . . Parts Field Recycled . | . . . . . . . . . . . . . Retrieved Matter . | . . . . . . . . . . . . . Parts Self-Destructed . | . . . . . . . . . . . . . Prevented . | . . . . . . . . . . . . . Kills | -11 -10 -10 -9 -9 -8 -7 -6 -5 -5 -4 -4 -4 ------- Run | Yrd Mat Min Mat Sto Mat Fac Fac Fac Ext Fac Was Fac Combat Hostiles Destroyed 78 | . 16 . 25 12 6 1 . . 16 . . 2 Melee 5 | . . . . . . 1 . . 3 . . 1 Guns 55 | . 16 . 23 12 3 . . . . . . 1 Cannons 3 | . . . . . 3 . . . . . . . AOE 14 | . . . 1 . . . . . 13 . . . Classes Destroyed 14 | 3 6 . 3 1 1 . . . . . . . Worker 17 | 2 2 2 2 2 2 . 1 2 2 . . . Builder 7 | . . . 2 1 . 2 . . 2 . . . Tunneler 8 | 6 . . . . . 1 . 1 . . . . Hauler 17 | . 2 . 6 6 2 1 . . . . . . Recycler 11 | 1 4 . . 1 1 1 . 1 2 . . . Mechanic 2 | . 1 . 1 . . . . . . . . . Operator 7 | . 1 . 2 . . 3 . 1 . . . . Watcher 15 | . 3 . 4 1 3 2 . 1 1 . . . Swarmer 21 | . 9 . . 1 . . . . 9 . . 2 Grunt 32 | . 7 . 15 4 2 1 . . 3 . . . Brawler 1 | . . . . 1 . . . . . . . . Duelist 2 | . . . 2 . . . . . . . . . Sentry 19 | . . . 8 6 3 . . . 2 . . . Hunter 2 | . . . . . 1 . . . 1 . . . Thug 1 | . . . . . . . . . 1 . . . Savage 1 | . . . . . . . . . 1 . . . Guerrilla 1 | . . . . . . . . . 1 . . . Best Kill Streak 11 | 4 6 2 5 5 2 3 1 2 11 . . 2 Combat Bots Only 6 | . 3 . 5 2 1 1 . . 6 . . 2 Max Kills in Single Turn 6 | 1 2 1 2 1 2 1 1 1 6 . . 1 Gunslinging 1 | . 1 . . . . . . . . . . . Exploded 4 | . . . 1 . . . . . 4 . . . Melee 1 | . . . . . . 1 . . 1 . . 1 Uniques/NPCs Destroyed . | . . . . . . . . . . . . . Combat | -11 -10 -10 -9 -9 -8 -7 -6 -5 -5 -4 -4 -4 -------- Run | Yrd Mat Min Mat Sto Mat Fac Fac Fac Ext Fac Was Fac Hostile Shots Fired 752 | . 85 . 218 75 41 38 25 . 109 . 2 159 Missed 242 | . 18 . 59 13 12 30 18 . 34 . . 58 Hits 510 | . 67 . 159 62 29 8 7 . 75 . 2 101 Melee 5 | . . . 2 1 . . . . . . 2 . Projectile 505 | . 67 . 157 61 29 8 7 . 75 . . 101 Critical Strikes 20 | . 2 . 4 1 1 . . . 7 . . 5 Damage Taken 8098 | . 598 . 2088 879 441 84 110 . 1740 . 81 2077 Core 2254 | . 103 . 180 117 74 32 55 . 536 . 32 1125 Absorbed by Shields . | . . . . . . . . . . . . . Regen/Repaired (Parts) 152 | . . . . 121 . 6 . . . . . 25 Core Remaining (%) 71 | 100 . 58 . 25 86 95 93 . 46 . . . Volleys Fired 350 | 17 88 1 111 64 32 . . . 18 . . 19 Largest 2 | 2 2 2 2 2 2 . . . 1 . . 1 Hottest 112 | 80 80 40 112 46 80 . . . 50 . . 23 Shots Fired 661 | 34 173 4 222 127 64 . . . 18 . . 19 Gun 591 | 34 173 4 213 126 22 . . . . . . 19 Cannon 47 | . . . 5 . 42 . . . . . . . Launcher 23 | . . . 4 1 . . . . 18 . . . Special . | . . . . . . . . . . . . . Kinetic 358 | . 57 4 88 126 64 . . . . . . 19 Thermal 280 | 34 116 . 130 . . . . . . . . . Explosive 19 | . . . . 1 . . . . 18 . . . Electromagnetic 4 | . . . 4 . . . . . . . . . Robot Hit Streak 38 | 10 8 1 30 38 9 . . . 19 . . 6 Robot Miss Streak 5 | 3 4 1 4 3 4 . . . 5 . . 2 Penetration Max . | . . . . . . . . . . . . . Secondary Targets 6 | . 3 . 3 . . . . . . . . . Max Gunslinging Chain 1 | . 1 . 1 . . . . . . . . . Shots Hit Robots 483 | 23 99 1 148 97 46 18 2 6 29 . . 14 Core Hits 275 | 10 47 1 61 35 17 7 1 4 79 . . 13 Critical Kills . | . . . . . . . . . . . . . Critical Parts Destroyed 4 | . . . 2 . . 2 . . . . . . Critical Strikes 12 | . . . 7 . . 2 . . 3 . . . Burn 5 | . . . 5 . . . . . . . . . Destroy 2 | . . . 2 . . . . . . . . . Smash 2 | . . . . . . 2 . . . . . . Sever 3 | . . . . . . . . . 3 . . . Melee Attacks 102 | . . . . 1 . 47 17 16 21 . . . Impact 9 | . . . . 1 . 8 . . . . . . Slashing 93 | . . . . . . 39 17 16 21 . . . Piercing . | . . . . . . . . . . . . . Sneak Attacks 14 | . . . . . . 5 2 5 2 . . . Combat Hostiles . | . . . . . . . . . . . . . Follow-up Attacks . | . . . . . . . . . . . . . Damage Inflicted 11821 | 266 1096 21 2827 1549 1009 1015 150 454 2999 . . 435 Guns 5850 | 266 1096 11 2468 1549 202 . . . . . . 258 Cannons 893 | . . . 86 . 807 . . . . . . . Explosions 2680 | . . . 273 . . . . . 2407 . . . Melee 2211 | . . . . . . 1015 150 454 592 . . . Ramming 187 | . . 10 . . . . . . . . . 177 Kinetic 4076 | . 242 11 1007 1549 1009 . . . . . . 258 Thermal 2684 | 266 854 . 1564 . . . . . . . . . Explosive 2407 | . . . . . . . . . 2407 . . . Electromagnetic 256 | . . . 256 . . . . . . . . . Impact 221 | . . . . . . 221 . . . . . . Slashing 1990 | . . . . . . 794 150 454 592 . . . Piercing . | . . . . . . . . . . . . . Highest Corruption 23 | . 2 2 9 9 . . . . 1 . . 23 Average Corruption 5 | . 1 2 6 9 . . . . 1 . . 7 Corruption Purged . | . . . . . . . . . . . . . Corruption Blocked . | . . . . . . . . . . . . . Effects 192 | . 18 16 78 75 . . . . 1 . . 4 Message Errors 52 | . 2 3 18 29 . . . . . . . . Matter Fused 47 | . 8 2 22 14 . . . . . . . 1 Heat Flow Errors 21 | . 2 2 11 6 . . . . . . . . Energy Discharges 20 | . 2 . 9 6 . . . . 1 . . 2 Parts Fused 3 | . . 1 1 1 . . . . . . . . Data Loss (minor) 22 | . 2 2 7 11 . . . . . . . . Data Loss (major) 13 | . 2 4 5 2 . . . . . . . . Misfires 8 | . . 2 3 3 . . . . . . . . Alerts 3 | . . . 2 1 . . . . . . . . Misdirections 1 | . . . . . . . . . . . . 1 Weapon Failures 2 | . . . . 2 . . . . . . . . Overload Shots . | . . . . . . . . . . . . . Overflow Damage 722 | . . . . . . 395 46 126 154 . . 1 Projectiles . | . . . . . . . . . . . . . Explosions 95 | . . . . . . . . . 95 . . . Melee 627 | . . . . . . 395 46 126 59 . . 1 Knockbacks 2 | . . . . . 1 1 . . . . . . Impact 1 | . . . . . . 1 . . . . . . Kinetic 1 | . . . . . 1 . . . . . . . Secondary . | . . . . . . . . . . . . . Self-Inflicted Damage 427 | . . . . . . . . . 351 . . 76 Shots 17 | . . . . . . . . . 17 . . . Rammed 63 | . . 1 . . . . . . . . . 62 Targets Rammed 65 | . . 2 . . . . . . . . . 63 Kicked . | . . . . . . . . . . . . . Crushed 2 | . . 1 . . . . . . . . . 1 Highest Temperature 259 | 198 204 240 257 259 . . . . 11 . . . Average Temperature 55 | 75 47 119 47 99 . . . . 11 . . . Received Heat Transfer 1767 | . 144 . 909 309 90 24 12 . 270 . . 9 Siege Activations . | . . . . . . . . . . . . . Martial Activations . | . . . . . . . . . . . . . Shielding Activations . | . . . . . . . . . . . . . Robots Disrupted . | . . . . . . . . . . . . . Combat Hostiles . | . . . . . . . . . . . . . Robots Corrupted 1 | . . . . . . 1 . . . . . . Combat Hostiles . | . . . . . . . . . . . . . Parts Fried 1 | . . . . . . 1 . . . . . . Impact Corruptions 8 | . . . . . . 7 . . . . . 1 Robots Melted 1 | . . . 1 . . . . . . . . . Combat Hostiles 1 | . . . 1 . . . . . . . . . Parts Melted 11 | 2 1 . 8 . . . . . . . . . Heat Transferred 6226 | 600 1950 . 3676 . . . . . . . . . Parts Sabotaged . | . . . . . . . . . . . . . Parts Stolen . | . . . . . . . . . . . . . Parts Stripped . | . . . . . . . . . . . . . Power Chain Reactions 1 | . . . 1 . . . . . . . . . Alert | -11 -10 -10 -9 -9 -8 -7 -6 -5 -5 -4 -4 -4 ------- Run | Yrd Mat Min Mat Sto Mat Fac Fac Fac Ext Fac Was Fac Maximum Alert Level 2 | . . . 1 1 . 1 . . 2 . . . Low Security (%) 93 | 100 100 100 91 95 100 58 100 100 77 100 100 100 Level 1 6 | . . . 8 4 . 41 . . 20 . . . Level 2 . | . . . . . . . . . 2 . . . Level 3 . | . . . . . . . . . . . . . Level 4 . | . . . . . . . . . . . . . Level 5 . | . . . . . . . . . . . . . High Security . | . . . . . . . . . . . . . Max Security . | . . . . . . . . . . . . . Peak Influence 429 | 15 107 84 249 224 55 246 130 28 429 188 62 30 Initial 188 | . 3 22 11 102 55 . 116 13 . 188 62 22 Average 64 | 2 46 11 83 100 8 133 77 7 120 183 47 5 Influence Increases 4405 | 45 476 138 891 808 274 488 82 108 976 . . 119 Destroy 0b10 Robot/C 1960 | . 320 80 520 380 140 20 . . 460 . . 40 Destroy 0b10 Robot/NC 430 | 45 65 10 85 60 40 50 5 30 40 . . . Destroy Leader 536 | . 70 20 170 146 60 6 . 2 62 . . . Allied During Kill 215 | . . 13 6 101 1 . . . 94 . . . Successful Hack 363 | . 21 . 76 64 24 93 18 28 5 . . 34 Disable Machine 120 | . . . 15 30 . 30 . 15 30 . . . Destroy Structure 256 | . . . 4 12 9 19 14 18 180 . . . Partial Spotted 120 | . . . . . . 105 15 . . . . . Lose Combat Pursuer 405 | . . 15 15 15 . 165 30 15 105 . . 45 Influence Decreases 4405 | 40 423 166 678 918 407 249 293 134 593 207 146 151 Entered New Map 739 | . 2 36 19 141 78 . 123 15 2 197 116 10 Time Decay 2907 | 40 401 110 550 607 309 249 150 119 261 10 20 81 Lost Part 386 | . 20 . 76 10 . . 20 . 190 . 10 60 Lost Ally 373 | . . 20 33 160 20 . . . 140 . . . Squads Dispatched 32 | . 2 1 2 . . 12 7 4 4 . . . Investigation 18 | . 1 1 . . . 7 5 2 2 . . . Extermination 4 | . . . . . . 2 1 1 . . . . Reinforcement 10 | . 1 . 2 . . 3 1 1 2 . . . Assault . | . . . . . . . . . . . . . Garrison . | . . . . . . . . . . . . . Intercept . | . . . . . . . . . . . . . Searches Triggered . | . . . . . . . . . . . . . Construction Impeded . | . . . . . . . . . . . . . Haulers Reinforced 1 | . . . . . . 1 . . . . . . Active Scanning Responses . | . . . . . . . . . . . . . Cargo Convoy Interrupts . | . . . . . . . . . . . . . Stealth | -11 -10 -10 -9 -9 -8 -7 -6 -5 -5 -4 -4 -4 --------- Run | Yrd Mat Min Mat Sto Mat Fac Fac Fac Ext Fac Was Fac Distress Signals 15 | . 5 . 2 2 1 1 1 . 3 . . . Communications Jammed . | . . . . . . . . . . . . . Distress Signals . | . . . . . . . . . . . . . Times Spotted 191 | . 28 1 44 19 12 27 10 3 30 . 5 12 Peak Tracking Total 9 | . 4 2 8 3 3 6 7 1 7 . 6 9 Tactical Retreats 16 | . . 1 1 1 . 4 2 1 4 . . 2 Traps | -11 -10 -10 -9 -9 -8 -7 -6 -5 -5 -4 -4 -4 ------- Run | Yrd Mat Min Mat Sto Mat Fac Fac Fac Ext Fac Was Fac Traps Triggered 8 | . 3 . 2 . . . . . 2 1 . . Indirectly . | . . . . . . . . . . . . . Trap Hack Attempts . | . . . . . . . . . . . . . Triggered . | . . . . . . . . . . . . . Disarmed 6 | . . . . 6 . . . . . . . . Reprogrammed . | . . . . . . . . . . . . . Reused . | . . . . . . . . . . . . . Traps Extracted . | . . . . . . . . . . . . . Installed . | . . . . . . . . . . . . . Triggered . | . . . . . . . . . . . . . Machines | -11 -10 -10 -9 -9 -8 -7 -6 -5 -5 -4 -4 -4 ---------- Run | Yrd Mat Min Mat Sto Mat Fac Fac Fac Ext Fac Was Fac Machines Disabled 8 | . . . 1 2 . 2 . 1 2 . . . Max in Single Turn 1 | . . . 1 1 . 1 . 1 1 . . . Garrison Access 2 | . . . . . . 1 . 1 . . . . Energy Cycler 1 | . . . . . . . . . 1 . . . Machines Repaired . | . . . . . . . . . . . . . Machines Dismantled 2 | . . . . 1 . . . . 1 . . . Machines Sabotaged . | . . . . . . . . . . . . . Overloaded Fab Kills . | . . . . . . . . . . . . . Hacking | -11 -10 -10 -9 -9 -8 -7 -6 -5 -5 -4 -4 -4 --------- Run | Yrd Mat Min Mat Sto Mat Fac Fac Fac Ext Fac Was Fac Machines Accessed 73 | . 6 1 10 12 8 19 7 5 3 . . 2 Terminals 57 | . 6 . 10 11 6 13 5 2 3 . . 1 Fabricators 8 | . . . . . . 4 2 2 . . . . Repair Stations 3 | . . . . 1 . 1 . . . . . 1 Recycling Units . | . . . . . . . . . . . . . Scanalyzers 1 | . . . . . 1 . . . . . . . Garrison Access 3 | . . . . . 1 1 . 1 . . . . Total Hacks 221 | . 19 1 45 37 22 49 24 12 7 . . 5 Successful 137 | . 13 1 34 24 14 27 10 9 1 . . 4 Failed 83 | . 6 . 10 13 8 22 14 3 6 . . 1 Catastrophic 8 | . . . . 1 . 4 . . 3 . . . Database Lockouts 1 | . . . 1 . . . . . . . . . Manual 149 | . 18 . 28 17 17 39 13 7 7 . . 3 Terminals 183 | . 19 . 45 35 18 35 16 5 7 . . 3 Fabricators 24 | . . . . . . 11 8 5 . . . . Repair Stations 5 | . . . . 2 . 1 . . . . . 2 Recycling Units . | . . . . . . . . . . . . . Scanalyzers 2 | . . . . . 2 . . . . . . . Garrison Access 6 | . . . . . 2 2 . 2 . . . . Terminal Hacks 41 | . 4 1 14 10 3 3 2 2 1 . . 1 Record 1 | . . . . . . . 1 . . . . . Part Schematic 1 | . . . . . . 1 . . . . . . Robot Analysis 8 | . 4 . 2 . 2 . . . . . . . Prototype ID Bank 3 | . . . 2 1 . . . . . . . . Open Door 4 | . . 1 . 3 . . . . . . . . Level Access Points 1 | . . . . . 1 . . . . . . . Branch Access Points 1 | . . . . . . 1 . . . . . . Terminal Index 7 | . . . 1 1 . 1 1 1 1 . . 1 Alert Level 1 | . . . 1 . . . . . . . . . Locate Traps 3 | . . . 2 1 . . . . . . . . Disarm Traps 1 | . . . . 1 . . . . . . . . Dispatch Records 1 | . . . 1 . . . . . . . . . Maintenance Status 1 | . . . . 1 . . . . . . . . Security Status 1 | . . . 1 . . . . . . . . . Patrol Status 1 | . . . 1 . . . . . . . . . Transport Status 1 | . . . . 1 . . . . . . . . Hauler Manifests 3 | . . . 1 1 . . . 1 . . . . Registered Components 1 | . . . 1 . . . . . . . . . Zone Layout 1 | . . . 1 . . . . . . . . . Fabricator Hacks 14 | . . . . . . 7 5 2 . . . . Network Status 2 | . . . . . . 2 . . . . . . Load Schematic 9 | . . . . . . 4 3 2 . . . . Build 3 | . . . . . . 1 2 . . . . . Repair Station Hacks 4 | . . . . 2 . . . . . . . 2 Scan Component 2 | . . . . 1 . . . . . . . 1 Repair 2 | . . . . 1 . . . . . . . 1 Recycling Unit Hacks . | . . . . . . . . . . . . . Scanalyzer 2 | . . . . . 2 . . . . . . . Insert Component 1 | . . . . . 1 . . . . . . . Analyze 1 | . . . . . 1 . . . . . . . Garrison Access Hacks 2 | . . . . . . 1 . 1 . . . . Seal Access 2 | . . . . . . 1 . 1 . . . . Unauthorized Hacks 74 | . 9 . 20 12 9 16 3 4 . . . 1 Terminals 68 | . 9 . 20 12 9 13 2 2 . . . 1 Botnet 38 | . 4 . 10 7 4 8 2 2 . . . 1 Skim 30 | . 5 . 10 5 5 5 . . . . . . Fabricators 5 | . . . . . . 2 1 2 . . . . Prioritize 1 | . . . . . . . 1 . . . . . Recompile 4 | . . . . . . 2 . 2 . . . . Repair Stations 1 | . . . . . . 1 . . . . . . Patch 1 | . . . . . . 1 . . . . . . Recycling Units . | . . . . . . . . . . . . . Scanalyzers . | . . . . . . . . . . . . . Garrison Access . | . . . . . . . . . . . . . Data Cores Recovered 2 | . . . . . . 2 . . . . . . Used . | . . . . . . . . . . . . . Hacking Detections 59 | . 6 . 9 9 7 15 6 3 3 . . 1 Full Trace Events 12 | . . . . . 1 4 5 . 2 . . . Feedback Events 2 | . . . . . . . 1 . 1 . . . Corruption 1 | . . . . . . . . . 1 . . . Hackware Fried 1 | . . . . . . . 1 . . . . . Feedback Blocked . | . . . . . . . . . . . . . Robot Schematics Acquired . | . . . . . . . . . . . . . Robots Built . | . . . . . . . . . . . . . Authchips . | . . . . . . . . . . . . . Time . | . . . . . . . . . . . . . Total Robot Build Rating . | . . . . . . . . . . . . . Part Schematics Acquired 2 | . . . . . 1 1 . . . . . . Parts Built 4 | . . . . . . 2 2 . . . . . Authchips 2 | . . . . . . . 2 . . . . . Time 94 | . . . . . . 36 58 . . . . . Total Part Build Rating 12 | . . . . . . 6 6 . . . . . Parts Repaired 2 | . . . . 1 . . . . . . . 1 Time 86 | . . . . 32 . . . . . . . 54 Parts Recycled . | . . . . . . . . . . . . . Recycled Matter . | . . . . . . . . . . . . . Retrieved Matter . | . . . . . . . . . . . . . Retrieved Components . | . . . . . . . . . . . . . Parts Scanalyzed 1 | . . . . . 1 . . . . . . . Part Schematics Acquired 1 | . . . . . 1 . . . . . . . Parts Damaged . | . . . . . . . . . . . . . Bothacking | -11 -10 -10 -9 -9 -8 -7 -6 -5 -5 -4 -4 -4 ------------ Run | Yrd Mat Min Mat Sto Mat Fac Fac Fac Ext Fac Was Fac Used RIF Installer . | . . . . . . . . . . . . . Robots Hacked . | . . . . . . . . . . . . . Non-combat . | . . . . . . . . . . . . . Combat . | . . . . . . . . . . . . . Robot Hacks Applied . | . . . . . . . . . . . . . Relay Couplers Released . | . . . . . . . . . . . . . Fabnet Peak Effective % . | . . . . . . . . . . . . . Robots Rewired 3 | . . . . . . . . . 3 . . . Allies Hacked . | . . . . . . . . . . . . . Hacks Repelled . | . . . . . . . . . . . . . Allies | -11 -10 -10 -9 -9 -8 -7 -6 -5 -5 -4 -4 -4 -------- Run | Yrd Mat Min Mat Sto Mat Fac Fac Fac Ext Fac Was Fac Total Allies 24 | . . 4 . 10 . . . . 10 . . . Largest Group 10 | . . 4 2 10 2 . . . 9 . . . Highest-Rated Group 287 | . . 71 32 88 16 . . . 287 . . . Highest-Rated Ally 39 | . . 31 16 16 8 . . . 39 . . . Total Orders . | . . . . . . . . . . . . . Ally Attacks 142 | . . 13 11 47 18 . . . 53 . . . Total Damage 2018 | . . 135 111 386 173 . . . 1213 . . . Kills 22 | . . 4 1 8 1 . . . 8 . . . Allies Corrupted . | . . . . . . . . . . . . . Allies Melted . | . . . . . . . . . . . . . Intel | -11 -10 -10 -9 -9 -8 -7 -6 -5 -5 -4 -4 -4 ------- Run | Yrd Mat Min Mat Sto Mat Fac Fac Fac Ext Fac Was Fac Active Infowar (turns) 5094 | 89 1190 1158 156 . . 609 316 379 739 35 59 364 Optics 1575 | . . . . . . . . 378 739 35 59 364 Sensors 1483 | . . . . . . . 280 355 639 . 18 191 Structural 1666 | . . . . . . 607 316 379 134 . . 230 Seismic 2593 | 89 1190 1158 156 . . . . . . . . . Machine Analysis 2094 | . . . . . . 572 316 379 739 35 53 . Robot Analysis Total 8 | . 4 . 2 . 2 . . . . . . . Derelict Logs Recovered 2 | . . 2 . . . . . . . . . . Drone Launches . | . . . . . . . . . . . . . Drone Recoveries . | . . . . . . . . . . . . . Exploration | -11 -10 -10 -9 -9 -8 -7 -6 -5 -5 -4 -4 -4 ------------- Run | Yrd Mat Min Mat Sto Mat Fac Fac Fac Ext Fac Was Fac Turns Passed 12353 | 211 1472 1168 3026 2305 1582 649 316 379 739 35 59 412 Spaces Moved 7769 | 74 593 702 1041 796 432 1645 591 1033 445 37 106 274 Core 66 | 5 . . 4 . . . . . 14 37 2 4 Treads 3630 | 69 593 702 1023 796 432 13 . . . . . 2 Legs 169 | . . . . . . . . . 169 . . . Wheels 14 | . . . 14 . . . . . . . . . Hover . | . . . . . . . . . . . . . Flight 3890 | . . . . . . 1632 591 1033 262 . 104 268 Fastest Speed 21 | 50 160 160 160 240 236 25 23 21 21 50 45 35 Average Speed 117 | 153 182 160 242 240 238 27 23 21 72 91 46 45 Slowest Speed 1500 | 160 320 160 1500 240 240 238 26 24 190 100 100 145 Overloaded Moves . | . . . . . . . . . . . . . Propulsion Burnouts . | . . . . . . . . . . . . . Robots Hopped 13 | . . . . . . 4 . . 4 . . 5 Potential Cave-ins . | . . . . . . . . . . . . . Cave-ins Triggered . | . . . . . . . . . . . . . Exploration Rate (%) 50 | 4 83 99 89 94 45 57 24 27 42 2 75 10 Regions Visited 12 Branch Regions 3 Pre-discovered Areas 13 | . 1 1 5 4 . 2 . . . . . . Known Exits Taken 8 | . 1 1 1 1 1 . 1 1 1 . . . Unknown Exits Taken 2 | 1 . . . . . 1 . . . . . . Scrap Searched 1 | . . 1 . . . . . . . . . . Spaces Dug 94 | . . . . 15 . 19 14 9 37 . . . Terrain Destroyed 346 | . . . . 15 8 19 14 9 281 . . . Melee 42 | . . . . . . 19 14 9 . . . . Projectile 8 | . . . . . 8 . . . . . . . AOE 296 | . . . . 15 . . . . 281 . . . Terrain Rammed . | . . . . . . . . . . . . . Walls Destroyed . | . . . . . . . . . . . . . Machines Disabled . | . . . . . . . . . . . . . Actions | -11 -10 -10 -9 -9 -8 -7 -6 -5 -5 -4 -4 -4 --------- Run | Yrd Mat Min Mat Sto Mat Fac Fac Fac Ext Fac Was Fac Total 10142 | 133 820 743 1324 1049 926 1774 743 1166 777 38 114 535 Wait 1479 | 32 117 33 92 134 426 37 114 101 219 . 5 169 Move 7734 | 73 592 701 1040 795 431 1636 590 1032 437 37 105 265 Hop 11 | . . . . . . 4 . . 3 . . 4 Pick Up 77 | 3 14 2 24 8 9 6 3 4 2 . . 2 Fast Attach 69 | 7 1 . 15 6 7 4 6 5 7 1 3 7 Attach 45 | . 2 1 12 3 1 11 6 2 4 . . 3 Detach 8 | . . . 1 2 . . . 1 2 . . 2 Swap 36 | 1 3 2 9 12 4 2 1 . 2 . . . Drop 97 | . 3 1 20 15 16 27 6 5 1 . 1 2 Fire 350 | 17 88 1 111 64 32 . . . 18 . . 19 Melee 102 | . . . . 1 . 47 17 16 21 . . . Ram 54 | . . . . . . . . . . . . 54 Kick . | . . . . . . . . . . . . . Crush 10 | . . 2 . . . . . . . . . 8 Escape Stasis 22 | . . . . . . . . . 22 . . . Rewire 31 | . . . . . . . . . 31 . . . Trap . | . . . . . . . . . . . . . Miscellaneous 17 | . . . . 9 . . . . 8 . . . Route ------- -11/Scrapyard -10/Materials (discovered 5 exits: *Mat x2 / *Min x2 / *Sub) -10/Mines (discovered 3 exits: *Mat x2 / *Sub) -9/Materials (discovered 6 exits: *Mat x3 / *Min x2 / *Sto) -9/Storage (discovered 2 exits: *Mat / [*Rec]) -8/Materials (discovered 3 exits: *Fac x3) -7/Factory (discovered 3 exits: *Fac / *Low x2) -6/Factory (discovered 2 exits: *Fac / [*Low]) -5/Factory -5/Extension (discovered 2 exits: *Fac / Cet) -4/Factory -4/Waste -4/Factory History --------- Turn | Location | Event 8 | -11/Scrapyard | Discovered new exit (range 14) 212 | -11/Scrapyard | Entered Materials 300 | -10/Materials | Build established: Mutant 728 | -10/Materials | Discovered new exit (range 12) 949 | -10/Materials | Discovered new exit (range 13) 1090 | -10/Materials | Discovered new exit (range 9) 1251 | -10/Materials | Learned location of Recycling (-9) 1252 | -10/Materials | Discovered new exit (range 14) 1320 | -10/Materials | Learned location of 1 exit from Storage 1341 | -10/Materials | Identified exit to Materials 1341 | -10/Materials | Identified exit to Mines 1341 | -10/Materials | Identified exit to Subcaves 1376 | -10/Materials | Loaded intel: 1 repair station location 1406 | -10/Materials | Learned Storage trap positions 1684 | -10/Materials | Entered Mines 2099 | -10/Mines | Assisted by bots powering up and referring to "LRC-V3" 2141 | -10/Mines | Met a Derelict shopkeep closing up shop 2207 | -10/Mines | Discovered exit to Materials (range 9) 2208 | -10/Mines | Received a Mining Laser from a helpful Derelict 2613 | -10/Mines | Discovered exit to Materials (range 10) 2852 | -10/Mines | Entered Materials 2852 | -9/Materials | Accompanied by 2 allies 2852 | -9/Materials | Evolved 2 slots: Propulsion x1, Utility x1 2853 | -9/Materials | Identified exit to Mines 2853 | -9/Materials | Identified exit to Storage 3012 | -9/Materials | Lost 3 allies 3086 | -9/Materials | Lost 11 parts (1p5n1u4w) 3522 | -9/Materials | Discovered new exit (range 14) 3736 | -9/Materials | Central database locked down 3868 | -9/Materials | Identified exit to Materials 3916 | -9/Materials | Loaded intel: 7 trap records 3956 | -9/Materials | Learned location of 2 exits from Materials 4008 | -9/Materials | Learned location of Zion (-6) 4023 | -9/Materials | Learned Storage emergency access door positions 4085 | -9/Materials | Loaded intel: 2 repair station locations 5458 | -9/Materials | Learned location of 1 exit from Recycling 5499 | -9/Materials | Learned location of 1 exit from Recycling 5528 | -9/Materials | Learned location of Storage (-9) 5554 | -9/Materials | Loaded intel: 12 terminal locations 5593 | -9/Materials | Learned location of Mines (-9) 5878 | -9/Materials | Entered Storage 5880 | -9/Storage | Loaded intel: 12 trap records 6130 | -9/Storage | Core integrity fell below 50% 6518 | -9/Storage | Discovered new exit (range 3) 6634 | -9/Storage | Repaired Hrd. Light Armor Plating 6703 | -9/Storage | Found Prototype Launcher 6703 | -9/Storage | Identified Scatter Rocket Array 7041 | -9/Storage | Learned location of Armory (-3) 7094 | -9/Storage | Assisted by bots powering up and referring to "LRC-V3" 7142 | -9/Storage | Learned 4 Materials zone layouts 7214 | -9/Storage | Learned Materials emergency access door positions 7379 | -9/Storage | Build established: Commander-Mutant 7528 | -9/Storage | Lost 4 allies 7970 | -9/Storage | Build established: Mutant 8183 | -9/Storage | Entered Materials 8183 | -8/Materials | Accompanied by 2 allies 8183 | -8/Materials | Evolved 2 slots: Propulsion x1, Utility x1 8184 | -8/Materials | Identified exit to Factory 8485 | -8/Materials | Build established: Scavenger-Mutant 9032 | -8/Materials | Build established: Mutant 9404 | -8/Materials | Learned location of 1 exit from Extension 9468 | -8/Materials | Learned location of 1 exit from Storage 9520 | -8/Materials | Learned 2 Lower Caves zone layouts 9564 | -8/Materials | Learned location of 2 exits from Lower Caves 9643 | -8/Materials | Learned location of 1 exit from Extension 9699 | -8/Materials | Learned 4 Recycling zone layouts 9765 | -8/Materials | Entered Factory 9765 | -7/Factory | Evolved 2 slots: Propulsion x1, Utility x1 9937 | -7/Factory | Discovered new exit (range 14) 10033 | -7/Factory | Fabricated Cesium-ion Thruster? 10110 | -7/Factory | Build established: Sprinter 10123 | -7/Factory | Identified exit to Lower Caves 10191 | -7/Factory | Learned location of Lower Caves (-7) 10295 | -7/Factory | Learned Extension security intel 10333 | -7/Factory | Learned 4 Lower Caves zone layouts 10359 | -7/Factory | Learned Extension terminal intel 10366 | -7/Factory | Discovered new exit (range 9) 10375 | -7/Factory | Learned 4 Extension zone layouts 10414 | -7/Factory | Entered another Factory area 10414 | -6/Factory | Evolved 2 slots: Utility x2 10453 | -6/Factory | Fabricated Imp. VTOL Module (x1) 10483 | -6/Factory | Fabricated Imp. VTOL Module (x1) 10647 | -6/Factory | Discovered new exit (range 12) 10655 | -6/Factory | Hacking Suite fried by hacking feedback 10726 | -6/Factory | Discovered new exit (range 11) 10730 | -6/Factory | Identified exit to Factory 10730 | -6/Factory | Entered another Factory area 10730 | -5/Factory | Evolved 2 slots: Propulsion x1, Utility x1 10752 | -5/Factory | Build established: Scout 10974 | -5/Factory | Discovered new exit (range 19) 11001 | -5/Factory | Found Imp. Powered Armor 11109 | -5/Factory | Identified exit to Extension 11109 | -5/Factory | Entered Extension 11110 | -5/Extension | Identified exit to Cetus 11110 | -5/Extension | Identified exit to Factory 11113 | -5/Extension | Loaded intel: 17 terminal locations 11151 | -5/Extension | Rescued a captive Derelict 11343 | -5/Extension | Lost 3 parts (1p2n) 11501 | -5/Extension | Energy Cycler disabled 11501 | -5/Extension | Rescued a captive Derelict 11502 | -5/Extension | Rescued a captive Derelict 11502 | -5/Extension | Rescued a captive Derelict 11503 | -5/Extension | Rescued a captive Derelict 11503 | -5/Extension | Rescued a captive Derelict 11503 | -5/Extension | Rescued a captive Derelict 11508 | -5/Extension | Rescued a captive Derelict 11510 | -5/Extension | Rescued a captive Derelict 11531 | -5/Extension | Rescued a captive Derelict 11584 | -5/Extension | Disrupted transfer network 11585 | -5/Extension | Spotted B-75 Beast 11645 | -5/Extension | Build established: Assassin 11663 | -5/Extension | Allies destroyed B-75 Beast 11663 | -5/Extension | Lost 3 allies 11739 | -5/Extension | Lost 5 allies 11779 | -5/Extension | Lost 3 parts (2n1u) 11792 | -5/Extension | Spotted B-75 Beast 11846 | -5/Extension | Core integrity fell below 50% 11848 | -5/Extension | Entered Factory 11848 | -4/Factory | Evolved 2 slots: Propulsion x1, Utility x1 11863 | -4/Factory | Discovered new exit (range 20) 11870 | -4/Factory | Lost 12 parts (1p6n2u3w) 11883 | -4/Factory | Sucked down chute 11883 | -4/Factory | Entered Waste 11890 | -4/Waste | Spotted C-40 Crusher 11890 | -4/Waste | Spotted C-40 Crusher 11899 | -4/Waste | Spotted C-40 Crusher 11909 | -4/Waste | Spotted C-40 Crusher 11915 | -4/Waste | Crushed by Compactor (1 part destroyed) 11916 | -4/Waste | Spotted C-40 Crusher 11924 | -4/Waste | Found Prototype Device 11924 | -4/Waste | Identified Exp. Sensor Array 11933 | -4/Waste | Spotted C-40 Crusher 11935 | -4/Waste | Discovered new exit (range 14) 11936 | -4/Waste | Crushed by Compactor (0 parts destroyed, 1 dropped) 11941 | -4/Waste | Identified exit to Factory 11942 | -4/Waste | Entered Factory 12014 | -4/Factory | Repaired Exp. Sensor Array 12305 | -4/Factory | Core integrity fell below 50% 12317 | -4/Factory | System corruption reached 10% 12332 | -4/Factory | Core integrity fell below 20% 12347 | -4/Factory | Lost 12 parts (2n8u2w) 12354 | -4/Factory | Core destroyed Last Messages --------------- 12334_ Acquired 21 matter. 12336_ Slammed into P-70 Sage. 12338_ Slammed into M-36 Artificer. 12338_ Destabilizing: Core damaged (-11). 12339_ Acquired 16 matter. 12339_ Slammed into P-70 Sage. 12343_ ALERT: Security rotation in progress. 12343_ Slammed into P-70 Sage. 12345_ P-70 Sage misfires. 12345_ Slammed into P-70 Sage. 12346_ System corrupted: Energy discharge (-21). 12346_ Slammed into P-70 Sage. 12346_ Destabilizing: System corrupted (+2). 12347_ Slammed into P-70 Sage. 12350_ R-10 Processor collects VTOL Module. 12351_ Slammed into P-70 Sage. 12353_ Broken Adv. Signal Interpreter destroyed. 12353_ System corrupted by crushing effect (+5). 12354_ Slammed into P-70 Sage. 12354_ Destabilizing: Core damaged (-46). Map ----- +----------------------------------------------------+ | ??????????????# #????????????????? | | ??????????????# #################+ | | ??????????????# | | ???????#####+## | | ???????+ | | ???????# ^ | | ???????# !! | | ???????# !! | | ???????# | | ???????# | | ???????# ]! | | ???????+ ] | | ???????# | | ???????# | | ???????##### ################ | | ???????????# #?#! ! # | | ???????????# #?# """ # | | ???????????# #?# "" "" """ " = | | ???????????# #???""S"" """ # [[[ = | | ???????????# #????""" # [[[ | | ???????????# #????########### [[[ | | ???????????# #???????????########### | | ???????????# #???????????# # | | ?????????###/####????????# """""" # | | ?????????#! Rp #????????# """""" + | | ?????????#=%%@ #????????# """""" # | | ?????????#%%%* #????????# """""" # | | ?????????#%%""" #????????# # | | ?????????# """ #????????# # | | ?????????# """ #????????# # | | ?????????########????????########+## | | ????????????????????????????????# | | ????????????????????????????????# | | ????????????????????????????##### | | ????????????????????????????+ | | ????????????????????????????# | | ????????????????????????????# | | ????????????????????????????# | | ????????????????????????????# | | ????????????????????????????# """ | | ????????????????????????????# """ | | ????????????????????????????# """ | | ????????????????????????????# | | ?????????????????????????+?## """ | | ?????????????????????? """ | | ?????????????????????# """ | | ?????????????????????+ | | ?????????????????????# | | ?????????????????????# | | ?????????????????????####+############ | +----------------------------------------------------+ Best States ------------- Heat Dissipation 62 Energy Generation 18 Energy Capacity 290 Matter Stores 300 Matter Capacity 300 Sight Range 22 Robot Scan Range 20 Terrain Scan Density 10 Armor Coverage 400 Evasion (%) 65 Launcher Accuracy 30 Recoil Reduction 4 Salvage Targeting 2 Offensive Hacking 20 Defensive Hacking 10 Authchip Count 2 Item Schematics ----------------- Cesium-ion Thruster | -8/Materials | Scanalyzed Imp. VTOL Module | -7/Factory | Hacked Robot Schematics ------------------ None Fabricated ------------ Cesium-ion Thruster | x2 | -7/Factory Imp. VTOL Module | x1 | -6/Factory | Authchip Imp. VTOL Module | x1 | -6/Factory | Authchip Repaired ---------- Hrd. Light Armor Plating | 32% | -9/Storage Exp. Sensor Array | 13% | -4/Factory Alien Tech Used ----------------- None Achievements -------------- None Challenges ------------ None Game ------ Seed FortressRecoilExpander Manual? 0 Play Time 01:23:59 Cumulative 223.9 hours Start 2025.08.01 @ 05:56:10 End 2025.08.01 @ 07:16:41 Sessions 1 Manual Loads 0 Difficulty Rogue Special Mode None Game No. 194 Rogue 194 Adventurer 0 Explorer 0 Win Type - Total 12 Types 6/0/4/2/0/0/0/0/0/0 Lore% 78 Gallery% 73 Achievement% 68 Wizard Run 0 Options --------- Layout 1 ASCII 0 Keyboard 0 Movement Numpad Keybinds 0 Fullscreen 1 Font 32/SmallcapsGlow Map View 77x35 Zoom Use 0% Tactical HUD 1 Map Filters NONE Filters NONE Steam 1 RUN: d7b72891-6ae8-46e1-88e3-9ca7dae0c687